Cogmind - Beta 9.2 @@@ ROGUE MODE // 2019.11.17 @ 03:01:25 Player: Pitt Result: Destroyed by G-47 Trooper with Particle Gun Performance ------------- Evolutions (2) 1000 Regions Visited (3) 600 Robots Destroyed (44) 220 Value Destroyed (982) 982 Prototype IDs (2) 40 Alien Tech Used (0) 0 Bonus (0) 0 TOTAL SCORE: 2842 Bonus ------- None Cogmind --------- Core Integrity 0/550 Matter 222/300 Energy 122/125 System Corruption 0% Temperature Cool (12) Movement Flying (30) Location -8/Materials Parts ------- > --- POWER (2) -------- Light Ion Engine > --- PROPULSION (3) --- Improved Flight Unit Improved Flight Unit Cesium-ion Thruster > --- UTILITY (4) ------ Medium Storage Unit Visual Processing Unit Hacking Suite > --- WEAPON (2) ------- Great Maul > --- INVENTORY (8) ---- Improved Flight Unit Improved Flight Unit Improved Flight Unit Improved Sensor Array Transport Network Coupler Transmission Jammer Improved Utility Shielding Datajack Peak State ------------ > --- POWER ------------ Light Ion Engine Light Ion Engine > --- PROPULSION ------- Wheel Armored Wheel Cesium-ion Thruster > --- UTILITY ---------- Medium Storage Unit Medium Storage Unit Improved Utility Shielding Hacking Suite > --- WEAPON ----------- Assault Cannon Great Maul > --- INVENTORY -------- Wheel Flight Unit Flight Unit Visual Processing Unit Sensor Array Signal Interpreter Transport Network Coupler Transmission Jammer Core Shielding Mini Grenade Launcher Datajack [Rating: 23] Favorites ----------- Power Ion Engine Engine Ion Engine Power Core Light Nuclear Core Propulsion Light Treads Treads Light Treads Leg Aluminum Leg Wheel Wheel Flight Unit Flight Unit Utility Medium Storage Unit Device Sensor Array Storage Medium Storage Unit Processor Targeting Computer Hackware Hacking Suite Protection Improved Utility Shielding Weapon Shotgun Energy Gun Medium Laser Ballistic Gun Shotgun Ballistic Cannon Assault Cannon Launcher Mini Grenade Launcher Special Weapon Mining Laser Impact Weapon Great Maul Special Melee Weapon Datajack Build | -11 -10 -9 -8 ------- Run | Scr Mat Mat Mat Slots Evolved 4 | . . 2 2 Power 1 | . . . 1 Propulsion 1 | . . . 1 Utility 2 | . . 2 . Weapon . | . . . . Parts Attached 57 | 7 10 14 26 Power 9 | 1 2 3 3 Engine 8 | 1 2 2 3 Core 1 | . . 1 . Reactor . | . . . . Propulsion 20 | 2 2 3 13 Treads 6 | . 2 3 1 Leg 2 | 2 . . . Wheel 4 | . . . 4 Hover . | . . . . Flight 8 | . . . 8 Utility 12 | 2 2 3 5 Device 2 | . . 1 1 Storage 5 | 2 2 . 1 Processor 3 | . . 1 2 Hackware 1 | . . 1 . Protection 1 | . . . 1 Artifact . | . . . . Weapon 16 | 2 4 5 5 Energy Gun 1 | 1 . . . Energy Cannon . | . . . . Ballistic Gun 5 | 1 3 . 1 Ballistic Cannon 2 | . . 1 1 Launcher 2 | . . 2 . Special Weapon 1 | . 1 . . Impact Weapon 4 | . . 2 2 Slashing Weapon . | . . . . Piercing Weapon . | . . . . Special Melee Weapon 1 | . . . 1 Unidentified Prototypes 2 | . . 1 1 Parts Lost 14 | . 2 3 9 Power 3 | . . . 3 Propulsion 6 | . 1 1 4 Utility 2 | . . 1 1 Weapon 3 | . 1 1 1 Highest Loss Streak 4 | . 1 1 4 Average Slot Usage (%) 92 | . 98 96 82 Engine 12 | . 14 9 14 Treads 14 | . 10 20 11 Leg 5 | . 16 . . Wheel 1 | . . . 4 Flight 2 | . . . 6 Device 5 | . . 11 4 Storage 22 | . 28 22 15 Processor 2 | . . 6 1 Hackware 4 | . . 4 9 Energy Gun 1 | . 3 . . Ballistic Gun 10 | . 22 5 3 Ballistic Cannon 2 | . . 6 . Launcher 1 | . . 3 . Impact Weapon 4 | . . 5 9 Naked Turns . | . . . . Heaviest Build 39 | 17 27 34 39 Greatest Support 60 | 20 40 40 60 Greatest Overweight (x) 6 | 2 2 1 6 Average Overweight (x) . | . . . . Largest Inventory Capacity 12 | 8 12 12 12 Average Capacity 10 | 7 9 12 11 Most Carried 12 | 8 12 12 12 Average Carried 9 | 4 9 11 8 Final Capacity 12 | 8 12 12 8 Final Carried 12 | 8 12 11 8 Class Distribution -------------------- 63% | Mutant 33% | Scavenger-Mutant Dominant Class ---------------- Mutant | -10/Materials Mutant | -9/Materials Scavenger-Mutant | -8/Materials Resources | -11 -10 -9 -8 ----------- Run | Scr Mat Mat Mat Matter Collected 1137 | 270 335 334 198 Remotely . | . . . . Salvage Created 1471 | 139 393 498 441 Parts 74 | 12 19 25 18 Haulers Intercepted 6 | . 2 2 2 Recyclers Shooed . | . . . . Parts Field Recycled . | . . . . Retrieved Matter . | . . . . Parts Self-Destructed . | . . . . Prevented . | . . . . Kills | -11 -10 -9 -8 ------- Run | Scr Mat Mat Mat Combat Hostiles Destroyed 27 | . 8 12 7 Melee 5 | . . . 5 Guns 7 | . 7 . . Cannons 6 | . . 6 . AOE 3 | . . 3 . Classes Destroyed 10 | 2 3 4 1 Worker 1 | . . . 1 Tunneler 3 | 3 . . . Hauler 6 | . 2 2 2 Recycler 3 | 1 . 1 1 Operator 1 | . . 1 . Watcher 3 | . 1 2 . Swarmer 7 | . . 3 4 Grunt 17 | . 8 6 3 Duelist 1 | . . 1 . Sentry 2 | . . 2 . Best Kill Streak 5 | 2 4 5 4 Combat Bots Only 4 | . 2 4 4 Max Kills in Single Turn 2 | 1 1 2 1 Gunslinging . | . . . . Exploded 2 | . . 2 . Melee 1 | . . . 1 Uniques/NPCs Destroyed . | . . . . Combat | -11 -10 -9 -8 -------- Run | Scr Mat Mat Mat Damage Taken 2877 | . 660 724 1493 Core 863 | . 142 169 552 Absorbed by Shields . | . . . . Core Remaining (%) 66 | 100 43 57 . Volleys Fired 106 | 8 53 44 1 Largest 2 | 1 2 2 1 Hottest 100 | 50 100 74 44 Shots Fired 147 | 8 88 50 1 Gun 101 | 8 87 6 . Cannon 40 | . . 39 1 Launcher 5 | . . 5 . Special 1 | . 1 . . Kinetic 111 | . 65 45 1 Thermal 31 | 8 23 . . Explosive 5 | . . 5 . Electromagnetic . | . . . . Robot Hit Streak 6 | 4 6 6 2 Robot Miss Streak 5 | 2 5 2 . Penetration Max . | . . . . Secondary Targets 2 | . 2 . . Max Gunslinging Chain 1 | . 1 . . Shots Hit Robots 133 | 5 55 38 35 Core Hits 58 | 5 24 21 8 Critical Hits 2 | . . 2 . Critical Kills 1 | . . 1 . Critical Parts Destroyed 1 | . . 1 . Melee Attacks 63 | . . 8 55 Impact 63 | . . 8 55 Slashing . | . . . . Piercing . | . . . . Sneak Attacks 3 | . . . 3 Combat Hostiles . | . . . . Follow-up Attacks . | . . . . Damage Inflicted 3400 | 75 773 1378 1174 Guns 922 | 75 773 74 . Cannons 711 | . . 690 21 Explosions 410 | . . 410 . Melee 1353 | . . 200 1153 Ramming 4 | . . 4 . Kinetic 1408 | . 623 764 21 Thermal 225 | 75 150 . . Explosive 410 | . . 410 . Electromagnetic . | . . . . Impact 1353 | . . 200 1153 Slashing . | . . . . Piercing . | . . . . Highest Corruption . | . . . . Average Corruption . | . . . . Corruption Purged . | . . . . Overload Shots . | . . . . Overflow Damage 195 | . . 80 115 Projectiles . | . . . . Explosions 64 | . . 64 . Melee 131 | . . 16 115 Knockbacks 7 | . . 6 1 Impact 3 | . . 2 1 Kinetic 4 | . . 4 . Secondary . | . . . . Self-Inflicted Damage 91 | . . 91 . Shots 2 | . . 2 . Rammed 1 | . . 1 . Targets Rammed 1 | . . 1 . Kicked . | . . . . Crushed . | . . . . Highest Temperature 126 | 20 126 36 2 Average Temperature 20 | 9 27 12 1 Received Heat Transfer 1143 | . 306 243 594 Siege Activations . | . . . . Robots Corrupted . | . . . . Combat Hostiles . | . . . . Parts Fried 7 | . . 3 4 Impact Corruptions 12 | . . 3 9 Robots Melted 1 | . 1 . . Combat Hostiles 1 | . 1 . . Parts Melted . | . . . . Heat Transferred 666 | 222 444 . . Parts Sabotaged . | . . . . Parts Stolen . | . . . . Parts Stripped . | . . . . Power Chain Reactions . | . . . . Missiles Intercepted . | . . . . Alert | -11 -10 -9 -8 ------- Run | Scr Mat Mat Mat Peak Influence 300 | 20 182 300 192 Average Influence 94 | 9 79 125 106 Maximum Alert Level 1 | . . 1 . Low Security (%) 94 | 100 100 82 100 Level 1 5 | . . 17 . Level 2 . | . . . . Level 3 . | . . . . Level 4 . | . . . . Level 5 . | . . . . High Security . | . . . . Max Security . | . . . . Squads Dispatched 5 | . . 3 2 Investigation 2 | . . 2 . Extermination . | . . . . Reinforcement 3 | . . 1 2 Assault . | . . . . Garrison . | . . . . Intercept . | . . . . Construction Impeded . | . . . . Haulers Reinforced . | . . . . Stealth | -11 -10 -9 -8 --------- Run | Scr Mat Mat Mat Distress Signals 4 | . 2 1 1 Communications Jammed . | . . . . Distress Signals . | . . . . Times Spotted 59 | . 17 24 18 Peak Tracking Total 5 | . 3 4 5 Tactical Retreats 7 | . . 6 1 Traps | -11 -10 -9 -8 ------- Run | Scr Mat Mat Mat Traps Triggered 2 | . 1 1 . Indirectly . | . . . . Trap Hack Attempts . | . . . . Triggered . | . . . . Disarmed . | . . . . Reprogrammed . | . . . . Reused . | . . . . Traps Extracted . | . . . . Installed . | . . . . Triggered . | . . . . Machines | -11 -10 -9 -8 ---------- Run | Scr Mat Mat Mat Machines Disabled . | . . . . Max in Single Turn . | . . . . Machines Sabotaged . | . . . . Garrisons Compromised . | . . . . Overloaded Fab Kills . | . . . . Fab Network Shutdowns . | . . . . Hacking | -11 -10 -9 -8 --------- Run | Scr Mat Mat Mat Machines Accessed 7 | . 2 3 2 Terminals 4 | . 1 1 2 Fabricators . | . . . . Repair Stations 1 | . . 1 . Recycling Units 1 | . 1 . . Scanalyzers 1 | . . 1 . Garrison Access . | . . . . Total Hacks 20 | . 5 10 5 Successful 11 | . 3 7 1 Failed 9 | . 2 3 4 Catastrophic 2 | . 1 1 . Database Lockouts . | . . . . Manual 3 | . 2 1 . Terminals 10 | . 4 1 5 Fabricators . | . . . . Repair Stations 4 | . . 4 . Recycling Units 1 | . 1 . . Scanalyzers 5 | . . 5 . Garrison Access . | . . . . Terminal Hacks 3 | . 2 . 1 Alert Level 1 | . 1 . . Locate Traps 1 | . . . 1 Dispatch Records 1 | . 1 . . Fabricator Hacks . | . . . . Repair Station Hacks 2 | . . 2 . Scan Component 1 | . . 1 . Repair 1 | . . 1 . Recycling Unit Hacks 1 | . 1 . . Report Inventory 1 | . 1 . . Scanalyzer 5 | . . 5 . Insert Component 3 | . . 3 . Analyze 2 | . . 2 . Garrison Access Hacks . | . . . . Unauthorized Hacks . | . . . . Terminals . | . . . . Fabricators . | . . . . Repair Stations . | . . . . Recycling Units . | . . . . Scanalyzers . | . . . . Garrison Access . | . . . . Data Cores Recovered . | . . . . Used . | . . . . Hacking Detections 6 | . 1 3 2 Full Trace Events 1 | . . 1 . Feedback Events . | . . . . Feedback Blocked . | . . . . Robot Schematics Acquired . | . . . . Robots Built . | . . . . Matter . | . . . . Time . | . . . . Total Robot Build Rating . | . . . . Part Schematics Acquired 2 | . . 2 . Parts Built . | . . . . Matter . | . . . . Time . | . . . . Total Part Build Rating . | . . . . Parts Repaired 1 | . . 1 . Time 25 | . . 25 . Parts Recycled . | . . . . Recycled Matter . | . . . . Retrieved Matter . | . . . . Retrieved Components . | . . . . Parts Scanalyzed 2 | . . 2 . Part Schematics Acquired 2 | . . 2 . Parts Damaged 1 | . . 1 . Bothacking | -11 -10 -9 -8 ------------ Run | Scr Mat Mat Mat Used RIF Installer . | . . . . Robots Hacked . | . . . . Non-combat . | . . . . Combat . | . . . . Robot Hacks Applied . | . . . . Relay Couplers Released . | . . . . Robots Rewired . | . . . . Allies Hacked . | . . . . Hacks Repelled . | . . . . Allies | -11 -10 -9 -8 -------- Run | Scr Mat Mat Mat Total Allies . | . . . . Largest Group . | . . . . Highest-Rated Group . | . . . . Highest-Rated Ally . | . . . . Total Orders . | . . . . Ally Attacks . | . . . . Total Damage . | . . . . Kills . | . . . . Allies Corrupted . | . . . . Allies Melted . | . . . . Intel | -11 -10 -9 -8 ------- Run | Scr Mat Mat Mat Robot Analysis Total . | . . . . Derelict Logs Recovered . | . . . . Drone Launches . | . . . . Drone Recoveries . | . . . . Exploration | -11 -10 -9 -8 ------------- Run | Scr Mat Mat Mat Turns Passed 1788 | 171 551 540 526 Spaces Moved 903 | 115 253 222 313 Core 22 | 18 . . 4 Treads 395 | . 93 222 80 Legs 257 | 97 160 . . Wheels 94 | . . . 94 Hover . | . . . . Flight 135 | . . . 135 Fastest Speed 30 | 50 120 160 30 Average Speed 128 | 119 145 160 95 Slowest Speed 350 | 150 180 180 350 Overloaded Moves . | . . . . Propulsion Burnouts . | . . . . Robots Hopped . | . . . . Cave-ins Triggered . | . . . . Exploration Rate (%) 22 | 4 38 24 25 Regions Visited 3 Branch Regions . Pre-discovered Areas . | . . . . Known Exits Taken . | . . . . Unknown Exits Taken 3 | 1 1 1 . Scrap Searched . | . . . . Spaces Dug 10 | . 1 . 9 Terrain Destroyed 57 | . 1 47 9 Melee 9 | . . . 9 Projectile 8 | . 1 7 . AOE 40 | . . 40 . Actions | -11 -10 -9 -8 --------- Run | Scr Mat Mat Mat Total 1254 | 137 349 340 428 Wait 54 | . 13 33 8 Move 900 | 114 252 221 313 Hop . | . . . . Pick Up 33 | 8 9 8 8 Fast Attach 32 | 7 5 5 15 Attach 12 | . . 4 8 Detach 6 | . . . 6 Swap 13 | . 5 5 3 Drop 34 | . 12 11 11 Fire 106 | 8 53 44 1 Melee 63 | . . 8 55 Ram . | . . . . Kick . | . . . . Crush 1 | . . 1 . Escape Stasis . | . . . . Rewire . | . . . . Trap . | . . . . Miscellaneous . | . . . . Route ------- -11/Scrapyard -10/Materials (discovered 2 exits: *Mat / [*Min]) -9/Materials -8/Materials History --------- Turn | Location | Event 16 | -11/Scrapyard | Discovered new exit (range 14) 172 | -11/Scrapyard | Entered Materials 335 | -10/Materials | Discovered new exit (range 8) 343 | -10/Materials | Build established: Mutant 644 | -10/Materials | Core integrity fell below 50% 696 | -10/Materials | Discovered new exit (range 15) 723 | -10/Materials | Entered another Materials area 723 | -9/Materials | Evolved 2 slots: Utility x2 1190 | -9/Materials | Repaired Hvy. Ion Engine 1249 | -9/Materials | Discovered new exit (range 5) 1263 | -9/Materials | Entered another Materials area 1263 | -8/Materials | Evolved 2 slots: Power x1, Propulsion x1 1384 | -8/Materials | Build established: Scavenger-Mutant 1503 | -8/Materials | Lost 4 parts (1p2n1w) 1530 | -8/Materials | Core integrity fell below 50% 1542 | -8/Materials | Lost 3 parts (1p1n1u) 1554 | -8/Materials | Core integrity fell below 20% 1789 | -8/Materials | Destroyed by G-47 Trooper with Particle Gun Last Messages --------------- 01745_ Dropped Flight Unit. 01745_ W-25 Informer sends out distress signal. 01746_ Acquired Imp. Flight Unit. 01748_ Dropped Imp. Utility Shielding. 01749_ Acquired Imp. Sensor Array. 01751_ Dropped Mni. Grenade Launcher. 01752_ Acquired Imp. Flight Unit. 01753_ Dropped Great Maul. 01753_ Discarded Transport Network Coupler. 01755_ Acquired Great Maul. 01757_ Acquired Imp. Utility Shielding. 01759_ Acquired Transport Network Coupler. 01760_ Acquired 42 matter. 01761_ Acquired Imp. Flight Unit. 01765_ Slug penetrates Door. 01766_ Dropped Datajack. 01767_ Acquired Datajack. 01768_ Slug penetrates Wall. 01778_ ALERT: Hostiles spotted, dispatching reinforcements to Terminal M010. 01787_ Lgt. Ion Engine destroyed. Map ----- +----------------------------------------------------+ | | | | | ?????????????????????????????????????????????????? | | ?????????????????????????????????????????????????? | | ?????????????????????????????????????????????????? | | ?????????????????????????????????????????????????? | | ?????????????????????????????????????????????????? | | ?????????????????????????????????????????????????? | | ?????????????????????????????????????????????????? | | ?????????????????????????????????????????????????? | | ?????????????????????????????????????????????????? | | ?????????????????????????????????????????????????? | | ?????????????????????????????????????????????????? | | ?????????????????????????????????????????????????? | | ?????????????????????????????????????????????????? | | ?????????????????????????????????????????????????? | | ?????????????????????????????????????????????????? | | ?????????????????????????????????????????????????? | | ?????????????????????????????????????????????????? | | ?????????????????????????????????????????????????? | | ?????????????????????????????????????????????????? | | ?????????????????????????????????????????????????? | | ???????????????????????#?????????????????????????? | | ???????????????????????# ????????????????????????? | | ???????????????????????#g########????????????????? | | ???????????????????????# @== #????????????????? | | ????????????????????" /k #=! #????????????????? | | ?#####?????????? """ ## #=! #????????????????? | | ?# ?????????" ""???#?# #????????????????? | | ?# ?????????? ???????# #????????????????? | | ?# ???????????????????# #?#??????????????? | | ?# #???????????????????##+##+## #??????????????? | | ?# #???? ????????????#?## #??????????????? | | ?# #####+#######?????# ## #??????????????? | | ## ## ! ####### ## #??????????????? | | ## + #??????????????? | | ## """ #### #"### #??????????????? | | "" ## "" """ #??# # #??+## #??????????????? | | """ ## S"" """ ####+##+#"#????? #??????????????? | | "" ## "" # #??????#??????????????? | | #########+### """ #?????????????????????? | | [####### # """"" !#?????????????????????? | | = =! # """"" #?????????????????????? | | ]*T + """"" #?????????????????????? | | = # """ #?????????????????????? | | #+########## ] # #?????????????????????? | | ? ???????## ## ! #?????????????????????? | | ? ???????# ############?????????????????????? | | ?? #?????# #????????????????????????????????? | | ?? #?????# +????????????????????????????????? | +----------------------------------------------------+ Best States ------------- Heat Dissipation 31 Energy Generation 23 Energy Capacity 460 Matter Stores 300 Matter Capacity 300 Sight Range 18 Robot Scan Range 10 Terrain Scan Density 10 Utility Shielding 66 Evasion (%) 64 Targeting Accuracy 5 Recoil Reduction 3 Offensive Hacking 10 Item Schematics ----------------- Visual Processing Unit | -9/Materials | Scanalyzed Transport Network Coupler | -9/Materials | Scanalyzed Robot Schematics ------------------ None Fabricated ------------ Nothing Alien Tech Used ----------------- None Achievements -------------- None Challenges ------------ None Game ------ Seed ReactionDiametricInverter Manual? 0 Play Time 00:30:08 Cumulative 47.4 hours Start 2019.11.17 @ 02:29:51 End 2019.11.17 @ 03:01:25 Sessions 1 Manual Loads 0 Difficulty Rogue Special Mode None Game No. 88 Rogue 88 Adventurer 0 Explorer 0 Win Type - Total 0 Types 0/0/0/0/0/0/0 Lore% 33 Gallery% 44 Achievement% 28 Wizard Run 0 Options --------- ASCII 0 Keyboard 0 Movement Mouse Keybinds 0 Fullscreen 1 Font 12/Smallcaps Map View 83x54 Tactical HUD 1 Map Filters NONE Filters NONE Steam 1 RUN: 63574678-ccfd-4d7c-84f7-974ce4d7e6fb